Cogmind - Beta 13 X2 @@@ ROGUE MODE // 2024.01.16 @ 18:09:38 Player: Decinym Result: Destroyed by A6-IP3(R) with Subdweller Laser Performance ------------- Evolutions (0) 0 Regions Visited (3) 600 Robots Destroyed (27) 135 Value Destroyed (689) 689 Prototype IDs (0) 0 Alien Tech Used (0) 0 Bonus (-42) -42 TOTAL SCORE: 1382 Bonus ------- Friendly Fire -42 Cogmind --------- Core Integrity 0/250 Matter 229/300 Energy 106/125 System Corruption 0% Temperature Cool (6) Movement Rolling (95) Ox1 Location -10/Subcaves Parts ------- > --- POWER (1) -------- Light Ion Engine > --- PROPULSION (2) --- Wheel Wheel > --- UTILITY (2) ------ Scrap Shield > --- WEAPON (2) ------- Subdweller Laser Subdweller Machine Gun > --- INVENTORY (5) ---- Meta Core Makeshift Shrapnel Gun Rocket Launcher Multitool Botcube Peak State ------------ > --- POWER ------------ Light Ion Engine > --- PROPULSION ------- Wheel Subdweller Monowheel > --- UTILITY ---------- Scrap Shield > --- WEAPON ----------- Subdweller Laser Subdweller Machine Gun > --- INVENTORY -------- Subdweller Power Source Meta Core Riot Gun Makeshift Shrapnel Gun Rocket Launcher [Rating: 14] Favorites ----------- Power Ion Engine Engine Ion Engine Propulsion Aluminum Leg Treads Light Treads Leg Aluminum Leg Wheel Wheel Utility Medium Storage Unit Storage Medium Storage Unit Protection Core Shielding Weapon Subdweller Machine Gun Energy Gun Medium Laser Energy Cannon Subdweller Beam Cannon Ballistic Gun Subdweller Machine Gun Launcher Rocket Launcher Build | -11 -10 -10 -10 ------- Run | Yrd Mat Min Sub Slots Evolved . | . . . . Power . | . . . . Propulsion . | . . . . Utility . | . . . . Weapon . | . . . . Parts Attached 28 | . 2 5 21 Power 1 | . . . 1 Engine 1 | . . . 1 Core . | . . . . Reactor . | . . . . Propulsion 7 | . . 2 5 Treads 2 | . . . 2 Leg 2 | . . 2 . Wheel 3 | . . . 3 Hover . | . . . . Flight . | . . . . Utility 3 | . 2 . 1 Device . | . . . . Storage 1 | . 1 . . Processor . | . . . . Hackware . | . . . . Protection 2 | . 1 . 1 Artifact . | . . . . Weapon 17 | . . 3 14 Energy Gun 2 | . . . 2 Energy Cannon 4 | . . . 4 Ballistic Gun 9 | . . 2 7 Ballistic Cannon . | . . . . Launcher 2 | . . 1 1 Special Weapon . | . . . . Impact Weapon . | . . . . Slashing Weapon . | . . . . Piercing Weapon . | . . . . Special Melee Weapon . | . . . . Unidentified Prototypes . | . . . . Parts Lost 4 | . . 1 3 Power 1 | . . . 1 Propulsion 2 | . . . 2 Utility . | . . . . Weapon 1 | . . 1 . Highest Loss Streak 2 | . . 1 2 To Critical Strikes . | . . . . Average Slot Usage (%) 96 | . 97 100 94 Engine 14 | . 14 14 14 Treads 10 | . . . 16 Leg 12 | . 28 28 4 Wheel 4 | . . . 7 Storage 11 | . 24 14 9 Protection 12 | . 1 14 13 Energy Gun 6 | . 14 14 2 Energy Cannon 2 | . . . 3 Ballistic Gun 19 | . 14 14 21 Naked Turns . | . . . . Heaviest Build 31 | 14 24 20 31 Greatest Support 40 | 20 20 20 40 Greatest Overweight (x) 3 | . 1 . 3 Average Overweight (x) . | . . . . Largest Inventory Capacity 10 | . 10 10 10 Average Capacity 8 | . 9 10 8 Most Carried 10 | . 10 10 10 Average Carried 8 | . 8 9 7 Final Capacity 10 | 8 10 10 5 Final Carried 10 | 6 10 10 5 Class Distribution -------------------- 87% | Mutant 12% | Subdweller-Mutant Dominant Class ---------------- Mutant | -10/Materials Mutant | -10/Mines Mutant | -10/Subcaves Resources | -11 -10 -10 -10 ----------- Run | Yrd Mat Min Sub Matter Collected 746 | 200 . 142 404 Remotely . | . . . . Salvage Created 871 | . . 354 517 Parts 64 | . . 21 43 Haulers Intercepted . | . . . . Recyclers Shooed . | . . . . Parts Field Recycled . | . . . . Retrieved Matter . | . . . . Parts Self-Destructed 9 | . . . 9 Prevented . | . . . . Kills | -11 -10 -10 -10 ------- Run | Yrd Mat Min Sub Combat Hostiles Destroyed 25 | . . 13 12 Guns 17 | . . 12 5 Cannons 3 | . . . 3 AOE 4 | . . 1 3 Classes Destroyed 7 | . . 4 3 Tunneler 1 | . . 1 . Recycler 1 | . . 1 . Swarmer 11 | . . 11 . Grunt 2 | . . 2 . Sentry 1 | . . . 1 Artisan 3 | . . . 3 Subdweller 11 | . . . 11 Best Kill Streak 3 | . . 3 3 Combat Bots Only 3 | . . 3 3 Max Kills in Single Turn 1 | . . 1 1 Gunslinging . | . . . . Exploded 1 | . . 1 1 Melee . | . . . . Uniques/NPCs Destroyed . | . . . . Combat | -11 -10 -10 -10 -------- Run | Yrd Mat Min Sub Hostile Shots Fired 126 | . . 70 56 Missed 33 | . . 17 16 Damage Taken 1291 | . . 457 834 Core 253 | . . 102 151 Absorbed by Shields . | . . . . Redirected to Shielding 39 | . . 22 17 Core Remaining (%) 100 | 100 . . . Volleys Fired 113 | . 1 37 75 Largest 2 | . 2 2 2 Hottest 112 | . 70 70 112 Shots Fired 206 | . 2 72 132 Gun 171 | . 2 71 98 Cannon 25 | . . . 25 Launcher 10 | . . 1 9 Special . | . . . . Kinetic 110 | . 1 35 74 Thermal 71 | . 1 36 34 Explosive 10 | . . 1 9 Electromagnetic 15 | . . . 15 Robot Hit Streak 11 | . 1 10 11 Robot Miss Streak 7 | . 1 7 5 Penetration Max . | . . . . Secondary Targets . | . . . . Shots Hit Robots 92 | . 1 34 57 Core Hits 41 | . . 18 23 Critical Kills . | . . . . Critical Parts Destroyed . | . . . . Critical Strikes 3 | . . 3 . Burn 3 | . . 3 . Melee Attacks . | . . . . Impact . | . . . . Slashing . | . . . . Piercing . | . . . . Sneak Attacks . | . . . . Combat Hostiles . | . . . . Follow-up Attacks . | . . . . Damage Inflicted 1889 | . 13 519 1357 Guns 1099 | . 13 424 662 Cannons 339 | . . . 339 Explosions 435 | . . 79 356 Melee . | . . . . Ramming 16 | . . 16 . Kinetic 752 | . . 188 564 Thermal 511 | . 13 236 262 Explosive 435 | . . 79 356 Electromagnetic 175 | . . . 175 Impact . | . . . . Slashing . | . . . . Piercing . | . . . . Highest Corruption . | . . . . Average Corruption . | . . . . Corruption Purged . | . . . . Corruption Blocked . | . . . . Overload Shots . | . . . . Overflow Damage . | . . . . Projectiles . | . . . . Explosions . | . . . . Melee . | . . . . Knockbacks . | . . . . Impact . | . . . . Kinetic . | . . . . Secondary . | . . . . Self-Inflicted Damage . | . . . . Shots . | . . . . Rammed . | . . . . Targets Rammed 2 | . . 2 . Kicked 2 | . . 2 . Crushed . | . . . . Highest Temperature 90 | . 9 90 3 Average Temperature 30 | . 6 33 2 Received Heat Transfer 192 | . . 51 141 Siege Activations . | . . . . Robots Corrupted 1 | . . . 1 Combat Hostiles 1 | . . . 1 Parts Fried 2 | . . . 2 Impact Corruptions . | . . . . Robots Melted . | . . . . Combat Hostiles . | . . . . Parts Melted 4 | . . 1 3 Heat Transferred 1431 | . 37 925 469 Parts Sabotaged . | . . . . Parts Stolen . | . . . . Parts Stripped . | . . . . Power Chain Reactions . | . . . . Missiles Intercepted . | . . . . Alert | -11 -10 -10 -10 ------- Run | Yrd Mat Min Sub Peak Influence 368 | . 37 368 . Initial 14 | . . 14 . Average 135 | . 23 168 . Maximum Alert Level 1 | . . 1 . Low Security (%) 85 | . 100 81 . Level 1 14 | . . 18 . Level 2 . | . . . . Level 3 . | . . . . Level 4 . | . . . . Level 5 . | . . . . High Security . | . . . . Max Security . | . . . . Squads Dispatched 2 | . 2 . . Investigation . | . . . . Extermination . | . . . . Reinforcement 2 | . 2 . . Assault . | . . . . Garrison . | . . . . Intercept . | . . . . Searches Triggered . | . . . . Construction Impeded . | . . . . Haulers Reinforced . | . . . . Active Scanning Responses . | . . . . Cargo Convoy Interrupts . | . . . . Stealth | -11 -10 -10 -10 --------- Run | Yrd Mat Min Sub Distress Signals . | . . . . Communications Jammed . | . . . . Distress Signals . | . . . . Times Spotted 33 | . 3 16 14 Peak Tracking Total 3 | . 1 3 2 Tactical Retreats 3 | . . 2 1 Traps | -11 -10 -10 -10 ------- Run | Yrd Mat Min Sub Traps Triggered 1 | . . . 1 Indirectly . | . . . . Trap Hack Attempts . | . . . . Triggered . | . . . . Disarmed . | . . . . Reprogrammed . | . . . . Reused . | . . . . Traps Extracted . | . . . . Installed . | . . . . Triggered . | . . . . Machines | -11 -10 -10 -10 ---------- Run | Yrd Mat Min Sub Machines Disabled 1 | . . . 1 Max in Single Turn 1 | . . . 1 Machines Repaired . | . . . . Machines Dismantled . | . . . . Machines Sabotaged . | . . . . Overloaded Fab Kills . | . . . . Hacking | -11 -10 -10 -10 --------- Run | Yrd Mat Min Sub Machines Accessed 2 | . 1 . 1 Terminals 1 | . 1 . . Fabricators . | . . . . Repair Stations . | . . . . Recycling Units . | . . . . Scanalyzers . | . . . . Garrison Access . | . . . . Total Hacks 6 | . 3 . 3 Successful 4 | . 1 . 3 Failed 2 | . 2 . . Catastrophic . | . . . . Database Lockouts . | . . . . Manual 2 | . 2 . . Terminals 3 | . 3 . . Fabricators . | . . . . Repair Stations . | . . . . Recycling Units . | . . . . Scanalyzers . | . . . . Garrison Access . | . . . . Terminal Hacks 4 | . 1 . 3 Record 3 | . . . 3 Branch Access Points 1 | . 1 . . Fabricator Hacks . | . . . . Repair Station Hacks . | . . . . Recycling Unit Hacks . | . . . . Scanalyzer . | . . . . Garrison Access Hacks . | . . . . Unauthorized Hacks . | . . . . Terminals . | . . . . Fabricators . | . . . . Repair Stations . | . . . . Recycling Units . | . . . . Scanalyzers . | . . . . Garrison Access . | . . . . Data Cores Recovered . | . . . . Used . | . . . . Hacking Detections 1 | . 1 . . Full Trace Events . | . . . . Feedback Events . | . . . . Feedback Blocked . | . . . . Robot Schematics Acquired . | . . . . Robots Built . | . . . . Authchips . | . . . . Time . | . . . . Total Robot Build Rating . | . . . . Part Schematics Acquired . | . . . . Parts Built . | . . . . Authchips . | . . . . Time . | . . . . Total Part Build Rating . | . . . . Parts Repaired . | . . . . Time . | . . . . Parts Recycled . | . . . . Recycled Matter . | . . . . Retrieved Matter . | . . . . Retrieved Components . | . . . . Parts Scanalyzed . | . . . . Part Schematics Acquired . | . . . . Parts Damaged . | . . . . Bothacking | -11 -10 -10 -10 ------------ Run | Yrd Mat Min Sub Used RIF Installer . | . . . . Robots Hacked . | . . . . Non-combat . | . . . . Combat . | . . . . Robot Hacks Applied . | . . . . Relay Couplers Released . | . . . . Fabnet Peak Effective % . | . . . . Robots Rewired . | . . . . Allies Hacked . | . . . . Hacks Repelled . | . . . . Allies | -11 -10 -10 -10 -------- Run | Yrd Mat Min Sub Total Allies . | . . . . Largest Group . | . . . . Highest-Rated Group . | . . . . Highest-Rated Ally . | . . . . Total Orders . | . . . . Ally Attacks . | . . . . Total Damage . | . . . . Kills . | . . . . Allies Corrupted . | . . . . Allies Melted . | . . . . Intel | -11 -10 -10 -10 ------- Run | Yrd Mat Min Sub Robot Analysis Total . | . . . . Derelict Logs Recovered 4 | . . 2 2 Drone Launches . | . . . . Drone Recoveries . | . . . . Exploration | -11 -10 -10 -10 ------------- Run | Yrd Mat Min Sub Turns Passed 3813 | . 292 1001 2520 Spaces Moved 2535 | 1 166 734 1634 Core . | . . . . Treads 719 | . . . 719 Legs 1096 | 1 166 734 195 Wheels 720 | . . . 720 Hover . | . . . . Flight . | . . . . Fastest Speed 95 | 120 120 120 95 Average Speed 133 | 120 168 120 135 Slowest Speed 240 | 120 190 120 240 Overloaded Moves . | . . . . Propulsion Burnouts . | . . . . Robots Hopped . | . . . . Cave-ins Triggered . | . . . . Exploration Rate (%) 54 | 2 36 99 81 Regions Visited 3 Branch Regions 2 Pre-discovered Areas 1 | . . . 1 Known Exits Taken 1 | . 1 . . Unknown Exits Taken 2 | 1 . 1 . Scrap Searched 3 | . . 1 2 Spaces Dug 22 | . . . 22 Terrain Destroyed 85 | . . 9 76 Melee . | . . . . Projectile 2 | . . . 2 AOE 83 | . . 9 74 Terrain Rammed . | . . . . Walls Destroyed . | . . . . Machines Disabled . | . . . . Actions | -11 -10 -10 -10 --------- Run | Yrd Mat Min Sub Total 2773 | . 178 785 1810 Wait 44 | . . 1 43 Move 2532 | . 165 733 1634 Hop . | . . . . Pick Up 22 | . 7 3 12 Fast Attach 6 | . 1 . 5 Attach 10 | . 1 1 8 Detach . | . . . . Swap 12 | . . 4 8 Drop 27 | . 3 4 20 Fire 113 | . 1 37 75 Melee . | . . . . Ram . | . . . . Kick 2 | . . 2 . Crush . | . . . . Escape Stasis . | . . . . Rewire . | . . . . Trap . | . . . . Miscellaneous 5 | . . . 5 Route ------- -11/Scrapyard -10/Materials -10/Mines (discovered 3 exits: [*Mat x2] / *Sub) -10/Subcaves (discovered 2 exits: [*Mat] / Rec) History --------- Turn | Location | Event 1 | -11/Scrapyard | Discovered new exit (range 0) 1 | -11/Scrapyard | Entered Materials 38 | -10/Materials | Discovered new exit (range 11) 95 | -10/Materials | Identified exit to Mines 293 | -10/Materials | Entered Mines 307 | -10/Mines | Build established: Mutant 326 | -10/Mines | Met a Derelict bent on vengeance 358 | -10/Mines | Learned Materials emergency access door positions 522 | -10/Mines | Discovered new exit (range 5) 575 | -10/Mines | Received a Rocket Launcher from a helpful Derelict 604 | -10/Mines | Learned Materials garrison access intel 830 | -10/Mines | Discovered new exit (range 7) 884 | -10/Mines | Discovered new exit (range 4) 911 | -10/Mines | A weapon hastily lodged in a ceiling crevice suddenly fell to the ground 1034 | -10/Mines | Deemed a non-threat by the Exiles lab entrance 1294 | -10/Mines | Entered Subcaves 1406 | -10/Subcaves | Ambushed by angry Subdweller bent on revenge 1416 | -10/Subcaves | Core integrity fell below 50% 1643 | -10/Subcaves | Shifting Twisted Machinery released Mak. Shrapnel Gun 1661 | -10/Subcaves | Learned location of Recycling (-8) 1678 | -10/Subcaves | Shifting Twisted Machinery released Riot Gun 1911 | -10/Subcaves | Visited Clippyterm 1916 | -10/Subcaves | Learned 40 Factory zone layouts 1916 | -10/Subcaves | Learned Factory trap positions 2183 | -10/Subcaves | Ambushed by angry Subdweller bent on revenge 2740 | -10/Subcaves | Discovered new exit (range 5) 3168 | -10/Subcaves | Core integrity fell below 20% 3229 | -10/Subcaves | A swath of the cavern ceiling suddenly collapsed 3309 | -10/Subcaves | Ambushed by Subdweller buried in earth 3309 | -10/Subcaves | Ambushed by Subdweller buried in earth 3628 | -10/Subcaves | Build established: Subdweller-Mutant 3722 | -10/Subcaves | Identified exit to Recycling 3756 | -10/Subcaves | Visited 4L-MR0's lab 3767 | -10/Subcaves | Found Prototype Power Core 3781 | -10/Subcaves | Found Botcube 3814 | -10/Subcaves | Destroyed by A6-IP3(R) with Subdweller Laser Last Messages --------------- 03722_ Acquired derelict log, extracted data. 03756_ 4L-MR0: "What, already? Ugh, fine! Just take it and go! I only just finished this one... Can't you folks let me experiment with them a little longer before you take them away? 03757_ 4L-MR0 mumbles to no one in particular: "Damn Subs sneaking around stealing my stuff." 03759_ 4L-MR0 mumbles: "I'm surprised some of them are even willing to come in here given their fear of my usual visitors." 03761_ Testing Chamber breached. 03767_ Acquired Prototype Power Core. 03777_ 4L-MR0 cries out in pain. 03777_ 4L-MR0 destroyed. 03780_ Dropped Sub. Power Source. 03781_ Dropped Riot Gun. 03781_ Acquired Botcube. 03783_ Dropped Broken Sub. Monowheel. 03784_ Acquired Wheel. 03785_ Acquired 30 matter. 03787_ Acquired Multitool. 03813_ A6-IP3(R): "LEAVESUB!" Map ----- +----------------------------------------------------+ | ?????????????????????????????????????????????????? | | ?????????????????????????????????????????????????# | | ???????????????????????????????????????????????### | | ???????????????????????????????????????????????# | | ???????????????????????????????????????????????# | | ???????????????????????????????????????????????# | | ???????????????????????????????????????????????# | | ?????????????????????????????????????? ????????## | | ??????????????????????????????????#? ???????## | | ?????????????????????????????????# ????????? | | ?????????????????????????######??# ???????? | | ???????????????????????### #?## ???????? | | ???????????######??????# ### ???????? | | ???????????# #""#?????## #???????? | | ???????????# #""#?????# # #???????? | | ???????????# ""#?#####" # ????????? | | ???????????# [X"#?# #" # ????????? | | ???????????#**""#?# # #????????? | | ???????????#"= "#?# ##?###???? | | ???????????#" "#?# #" ##?# ### ##?## | | ???????????###+##### ## # ##?## ### | | ??????????### "##" # # #??# | | ??????????# " "" "" ## ## #??## | | ??????????# """ " ## ## ######## | | ??????????#"" "" " ### # #### "" ## | | ??????????## #### @"" ## "" ### | | ???????????#########??### " # ## ##?# ## | | ????????????????????????# """"# ######??# ## | | ????????????????????????#" ""###&! ##???????## # | | ????????????????????????# "####!%*##???????## | | ????????????????????????##[ "## !& #????????# | | ????????????????????????## ##???????## | | ????????????????????????# " R #????????### | | ???????????????????????#" "" ### ##??????????? | | #??????????????????????# "" ##?### ##??????????? | | ##?????????????????????##"" ##????# " #??????????? | | #??????????????????????##" #?????# " #??????????? | | #???????????????????????####????## ##??????????? | | #???????????????????????????????# " ##??????????? | | ##???????????????????????????????# #??????????? | | #????????????????????????????????# #??????????? | | ?????????????????????????????????# #??????????? | | ?????????????????????????????????## ##??????????? | | ?????????????????????????????????# #??????????? | | ?????????????????????????????????## ##??????????? | | ??????????????????????????????????# #??????????? | | ?????????????????????????????????## ##??????????? | | ????????????????????????????????## ##??????????? | | ????????????????????????????????# #??????????? | | ????????????????????????????????# #??????????? | +----------------------------------------------------+ Best States ------------- Heat Dissipation 25 Energy Generation 10 Energy Capacity 250 Matter Stores 300 Matter Capacity 300 Sight Range 16 Terrain Scan Density 10 Armor Coverage 800 Core Shielding 20 Evasion (%) 55 Recoil Reduction 2 Item Schematics ----------------- None Robot Schematics ------------------ None Fabricated ------------ Nothing Alien Tech Used ----------------- None Achievements -------------- None Challenges ------------ None Game ------ Seed AssemblyLightAutobeam Manual? 0 Play Time 00:17:26 Cumulative 364.1 hours Start 2024.01.16 @ 17:55:14 End 2024.01.16 @ 18:09:38 Sessions 1 Manual Loads 0 Difficulty Rogue Special Mode None Game No. 388 Rogue 388 Adventurer 0 Explorer 0 Win Type - Total 29 Types 16/3/4/1/2/0/3/0/0 Lore% 86 Gallery% 87 Achievement% 82 Wizard Run 0 Options --------- ASCII 0 Keyboard 0 Movement Arrows Keybinds 0 Fullscreen 2 Font 24/Smallcaps Map View 76x50 Zoom Use 0% Tactical HUD 1 Map Filters NONE Filters NONE Steam 1 RUN: 380e6d3c-b919-4cd8-ba8b-10fc0926ee31